fUST/lending_fUST_20250811
["ID","MTS","AMOUNT","RATE_DAILY","PERIOD"]
[378569977,1754914242260,-460.0,0.00019466,2]
[378569979,1754914242269,-468.91,0.00019466,2]
[378569981,1754914242279,-552.01,0.00019466,2]
[378569983,1754914242288,-460.0,0.00019466,2]
[378569984,1754914242297,-1078.69,0.00019466,2]
[378569985,1754914242307,-820.05,0.00019466,2]
[378569986,1754914242316,-464.70797815,0.00019466,2]
[378569987,1754914242326,-460.0,0.00019466,2]
[378569988,1754914242337,-460.0,0.00019466,2]
[378569989,1754914242346,-460.0,0.00019466,2]
[378569990,1754914242356,-460.0,0.00019466,2]
[378569991,1754914242365,-460.0,0.00019466,2]
[378569993,1754914242375,-460.0,0.00019466,2]
[378569995,1754914242385,-547.35,0.00019466,2]
[378569997,1754914242394,-460.0,0.00019466,2]
[378569999,1754914242404,-828.79,0.00019466,2]
[378570001,1754914242413,-747.22,0.00019466,2]
[378570003,1754914242422,-856.09,0.00019466,2]
[378570005,1754914242432,-460.0,0.00019466,2]
[378570007,1754914242442,-482.16085531,0.00019466,2]
[378570009,1754914242452,-3966.85,0.00019466,2]
[378570011,1754914242462,-460.0,0.00019466,2]
[378570013,1754914242472,-460.0,0.00019466,2]
[378570016,1754914242481,-460.0,0.00019466,2]
[378570018,1754914242491,-460.0,0.00019466,2]
[378570020,1754914242501,-460.0,0.00019466,2]
[378570022,1754914242510,-460.0,0.00019466,2]
[378570024,1754914242519,-460.0,0.00019466,2]
[378570026,1754914242529,-460.0,0.00019466,2]
[378570028,1754914242539,-460.0,0.00019466,2]
[378570030,1754914242549,-1847.0,0.00019466,2]
[378570032,1754914242558,-460.0,0.00019466,2]
[378570034,1754914242569,-460.0,0.00019466,2]
[378570036,1754914242581,-460.0,0.00019466,2]
[378570038,1754914242591,-460.0,0.00019466,2]
[378570040,1754914242600,-460.0,0.00019466,2]
[378570042,1754914242610,-1000.43,0.00019466,2]
[378570044,1754914242619,-451.18083543,0.00019466,2]
[378570046,1754914242629,-460.0,0.00019466,2]
[378570048,1754914242638,-460.0,0.00019466,2]
[378570051,1754914242649,-460.0,0.00019466,2]
[378570053,1754914242658,-509.77,0.00019466,2]
[378570055,1754914242668,-3237.4,0.00019466,2]
[378570057,1754914242677,-460.0,0.00019466,2]
[378570059,1754914242686,-241.99824823,0.00019466,2]
[378570061,1754914242695,-460.0,0.00019466,2]
[378570063,1754914242705,-470.24,0.00019466,2]
[378570065,1754914242714,-716.24,0.00019466,2]
[378570067,1754914242725,-460.0,0.00019466,2]
[378570069,1754914242735,-460.0,0.00019466,2]
[378570071,1754914242744,-460.0,0.00019466,2]
[378570073,1754914242753,-460.0,0.00019466,2]
[378570075,1754914242763,-460.0,0.00019466,2]
[378570077,1754914242772,-1059.06,0.00019466,2]
[378570079,1754914242782,-880.54,0.00019466,2]
[378570081,1754914242791,-681.43,0.00019466,2]
[378570083,1754914242800,-460.0,0.00019466,2]
[378570086,1754914242819,-460.0,0.00019466,2]
[378570088,1754914242832,-460.0,0.00019466,2]
[378570090,1754914242842,-460.0,0.00019466,2]
[378570092,1754914242852,-530.62656206,0.00019466,2]
[378570094,1754914242863,-519.78,0.00019466,2]
[378570096,1754914242873,-460.0,0.00019466,2]
[378570099,1754914242883,-460.0,0.00019466,2]
[378570101,1754914242893,-460.0,0.00019466,2]
[378570103,1754914242903,-460.0,0.00019466,2]
[378570105,1754914242913,-460.0,0.00019466,2]
[378570107,1754914242923,-460.0,0.00019466,2]
[378570109,1754914242933,-2063.69,0.00019466,2]
[378570111,1754914242943,-460.0,0.00019466,2]
[378570113,1754914242953,-460.0,0.00019466,2]
[378570115,1754914242963,-951.91860266,0.00019467,2]
[378570117,1754914242973,-951.91860266,0.00019467,2]
[378570119,1754914242983,-273.54115383,0.00019467,2]
[378570121,1754914242994,-951.91860266,0.00019467,2]
[378570124,1754914243004,-951.91860266,0.00019467,2]
[378570128,1754914243014,-951.91860266,0.00019467,2]
[378570132,1754914243025,-951.91860266,0.00019467,2]
[378570134,1754914243035,-951.91860266,0.00019467,2]
[378570138,1754914243044,-951.91860266,0.00019467,2]
[378570140,1754914243054,-951.91860266,0.00019467,2]
[378570143,1754914243064,-951.91860266,0.00019467,2]
[378570145,1754914243075,-951.91860266,0.00019467,2]
[378570147,1754914243086,-951.91860266,0.00019467,2]
[378570149,1754914243096,-951.91860266,0.00019467,2]
[378570151,1754914243106,-951.91860266,0.00019467,2]
[378570153,1754914243116,-951.91860266,0.00019467,2]
[378570155,1754914243127,-951.91860266,0.00019467,2]
[378570157,1754914243137,-951.91860266,0.00019467,2]
[378570159,1754914243148,-951.91860266,0.00019467,2]
[378570161,1754914243158,-951.91860266,0.00019467,2]
[378570163,1754914243168,-951.91860266,0.00019467,2]
[378570166,1754914243178,-1057.46020119,0.00019467,2]
[378570168,1754914243188,-1057.46020119,0.00019467,2]
[378570170,1754914243198,-1057.46020119,0.00019467,2]
[378570172,1754914243207,-1057.46020119,0.00019467,2]
[378570174,1754914243217,-1057.46020119,0.00019467,2]
[378570176,1754914243227,-608.79052663,0.00019467,2]
[378570179,1754914243243,-448.66967456,0.00019467,2]
[378570181,1754914243254,-402.85900915,0.00019467,2]
[378570253,1754914243928,-151.0,0.00019456,2]
[378570255,1754914243938,-250.0,0.00019456,2]
[378570258,1754914243949,-250.0,0.00019456,2]
[378570260,1754914243958,-36.38397611,0.00019456,2]
[378570262,1754914243975,-114.61602389,0.00019456,2]
[378570264,1754914243985,-250.0,0.00019456,2]
[378570267,1754914243995,-1153.60179872,0.00019466,2]
[378570269,1754914244004,-654.60119204,0.00019467,2]
[378570271,1754914244014,-1057.46020119,0.00019467,2]
[378570273,1754914244023,-1057.46020119,0.00019467,2]
[378570275,1754914244033,-1057.46020119,0.00019467,2]
[378570277,1754914244042,-3000.0,0.00019467,2]
[378570279,1754914244052,-850.67248039,0.00019468,2]
[378570506,1754914246136,-151.0,0.00019456,2]
[378570508,1754914246145,-250.0,0.00019456,2]
[378570511,1754914246156,-250.0,0.00019456,2]
[378570513,1754914246165,-151.0,0.00019456,2]
[378570515,1754914246174,-460.0,0.00019465,2]
[378570517,1754914246183,-700.91683664,0.00019468,2]
[378572729,1754914293019,24900.0,0.00018466,2]
[378572732,1754914305754,344.52857788,0.000189,2]
[378572733,1754914358375,2733.26583985,0.0003,120]
[378572735,1754914569841,4776.0,0.0003013,120]
[378572736,1754914598048,580.735783,0.00013699,2]
[378572738,1754914607043,229.68571858,0.000189,2]
[378572739,1754914664383,317.40544122,0.00018325,2]
[378572740,1754914664406,9682.59455878,0.00018325,2]
[378572742,1754914735762,233.0,0.0001905,2]
[378572744,1754914767249,84.40544122,0.00018303,2]
[378572745,1754914767276,268.89388678,0.00018303,2]
[378572756,1754914804008,257.502701,0.00018656,2]
[378572757,1754914804705,266.463074,0.00018677,2]
[378572758,1754914804883,383.44508614,0.00018685,2]
[378572759,1754914820343,1137.9519536,0.00018443,2]
[378572761,1754914837645,-201.13310184,0.00019114,2]
[378572763,1754914889797,261.0,0.00019,10]
[378572766,1754914908749,153.12381239,0.000189,2]
[378572767,1754914963916,5000.0,0.0001905,2]
[378572768,1754914972368,263.9190091,0.0001905,2]
[378572769,1754914972675,-65.4074429,0.00019114,2]
[378572770,1754914972701,-377.70040338,0.0001921,2]
[378572771,1754914976451,-164.732598,0.0001921,2]
[378572772,1754914978014,-264.69241534,0.0001921,2]
[378572773,1754914981452,2007.70047699,0.0001905,2]
[378572774,1754914981475,2992.29952301,0.0001905,2]
[378572775,1754914988216,-211.76184646,0.0001921,2]
[378572776,1754914989800,5000.0,0.0001905,2]
[378572777,1754914993630,-157.22112152,0.0001921,2]
[378572778,1754914995815,-272.75179334,0.0001921,2]
[378572779,1754914999002,-164.90202035,0.0001921,2]
[378572780,1754915001170,-323.80693673,0.0001921,2]
[378572781,1754915002620,-181.71741387,0.00019133,2]
[378572782,1754915004741,-19.41568797,0.00019133,2]
[378572783,1754915004764,-131.8167134,0.0001921,2]
[378572784,1754915006047,2007.70047699,0.0001905,2]
[378572785,1754915006069,2992.29952301,0.0001905,2]
[378572786,1754915007002,-157.57316859,0.0001921,2]
[378572787,1754915008639,-151.58592883,0.0001921,2]
[378572789,1754915011232,-168.77167557,0.0001921,2]
[378572790,1754915014688,5000.0,0.0001905,2]
[378572791,1754915015563,-159.68745094,0.0001921,2]
[378572792,1754915017624,-198.91289411,0.0001921,2]
[378572793,1754915020193,-152.0,0.0001921,2]
[378572794,1754915022748,-193.3301065,0.0001921,2]
[378572795,1754915022769,-109.86335766,0.00019233,2]
[378572796,1754915023166,636.97428153,0.0001905,2]
[378572797,1754915024862,-216.48985558,0.00019233,2]
[378572798,1754915029687,-201.35822976,0.00019233,2]
[378572799,1754915031880,1370.72619546,0.0001905,2]
[378572800,1754915031904,3629.27380454,0.0001905,2]
[378572801,1754915033096,-216.48985558,0.00019233,2]
[378572802,1754915047289,5000.0,0.0001905,2]
[378572803,1754915048867,-55.79870142,0.00019233,2]
[378572804,1754915048889,-244.20129858,0.00019255,2]
[378572805,1754915050457,-583.63646026,0.00019255,2]
[378572806,1754915050500,-145.13876115,0.00019262,2]
[378572807,1754915052065,-154.86123885,0.00019262,2]
[378572808,1754915052086,-153.0,0.00019262,2]
[378572809,1754915052108,-100.24108103,0.00019263,2]
[378572810,1754915054057,-414.61331616,0.00019263,2]
[378572811,1754915056757,-172.76850418,0.00019263,2]
[378572812,1754915058276,-186.57617012,0.00019263,2]
[378572813,1754915064175,-181.71741387,0.00019167,2]
[378572814,1754915064246,1370.72619546,0.0001905,2]
[378572815,1754915064272,3629.27380454,0.0001905,2]
[378572816,1754915065539,-121.10091633,0.00019167,2]
[378572817,1754915065562,-147.36051659,0.00019263,2]
[378572818,1754915067903,-178.44041192,0.00019263,2]
[378572819,1754915067925,-47.60403926,0.00019263,2]
[378572820,1754915069460,-156.34261991,0.00019263,2]
[378572821,1754915071609,-96.05334083,0.00019263,2]
[378572822,1754915071631,-67.60370772,0.00019263,2]
[378572823,1754915096206,-247.59114428,0.00019263,2]
[378572824,1754915097706,-165.52241516,0.00019263,2]
[378572825,1754915099185,-267.97210634,0.00019263,2]
[378572826,1754915101304,-188.51352957,0.00019263,2]
[378572827,1754915102875,-262.79709693,0.00019263,2]
[378572828,1754915102899,-142.17522371,0.00019263,2]
[378572829,1754915104650,-157.82477629,0.00019263,2]
[378572830,1754915104703,-17.04143215,0.00019263,2]
[378572831,1754915110171,-156.34261991,0.00019183,2]
[378572832,1754915110194,-121.12228627,0.00019263,2]
[378572833,1754915112842,-161.83628158,0.00019263,2]
[378572834,1754915112864,-76.8645303,0.00019263,2]
[378572835,1754915115013,-161.49793364,0.00019263,2]
[378572836,1754915116424,-61.63753606,0.00019263,2]
[378572837,1754915116450,-183.37805234,0.00019263,2]
[378572838,1754915118930,-116.62194766,0.00019263,2]
[378572839,1754915118956,-56.73885145,0.00019263,2]
[378572840,1754915120371,-163.22729957,0.00019263,2]
[378572841,1754915122631,-80.03384898,0.00019263,2]
[378572842,1754915122656,-88.26020036,0.00019263,2]
[378572843,1754915124222,-312.79588427,0.00019263,2]
[378572844,1754915132325,5000.0,0.0001905,2]
[378572845,1754915152718,-269.06865637,0.00019183,2]
[378572846,1754915156248,-83.94532658,0.00019183,2]
[378572847,1754915156271,-97.69487777,0.00019263,2]
[378572848,1754915157835,-296.95424603,0.00019263,2]
[378572849,1754915160937,-270.92086263,0.00019263,2]
[378572850,1754915162414,-133.37392894,0.00019263,2]
[378572851,1754915162437,-76.21368417,0.00019264,2]
[378572853,1754915164933,-296.37,0.00019114,2]
[378572854,1754915164956,-163.63,0.00019263,2]
[378572855,1754915166533,-136.37,0.00019263,2]
[378572856,1754915166556,-21.7703479,0.00019264,2]
[378572858,1754915169577,-261.63178041,0.00019244,2]
[378572859,1754915172553,-159.30022003,0.00019244,2]
[378572860,1754915174631,-230.11051151,0.00019244,2]
[378572861,1754915177713,-160.37135132,0.00019244,2]
[378572863,1754915180637,-185.89171525,0.00019164,2]
[378572864,1754915180662,-224.62500086,0.00019244,2]
[378572865,1754915183812,-317.49338094,0.00019244,2]
[378572866,1754915187392,-178.55908935,0.00019244,2]
[378572867,1754915190093,-165.95287388,0.00019244,2]
[378572868,1754915191853,-172.18453009,0.00019244,2]
[378572869,1754915194510,-172.1845301,0.00019244,2]
[378572870,1754915196604,-168.32223731,0.00019244,2]
[378572872,1754915210635,291.23746418,0.000189,2]
[378572873,1754915212635,-436.33747021,0.00019244,2]
[378572874,1754915215801,-197.76821297,0.00019244,2]
[378572875,1754915215823,-86.84116668,0.00019263,2]
[378572877,1754915217921,-281.89349326,0.00019263,2]
[378572878,1754915221167,-194.10655001,0.00019263,2]
[378572879,1754915222698,-306.47440362,0.00019263,2]
[378572880,1754915224896,-266.00067417,0.00019263,2]
[378572881,1754915227645,-64.68371226,0.00019263,2]
[378572882,1754915227667,-209.3480552,0.00019264,2]
[378572883,1754915230801,-315.35814612,0.00019264,2]
[378572885,1754915233386,-354.54708263,0.00019264,2]
[378572887,1754915236147,-308.16552185,0.00019178,2]
[378572889,1754915260088,-161.10308367,0.00019164,2]
[378572890,1754915263429,-374.81830604,0.00019164,2]
[378572891,1754915265532,-394.54111384,0.00019164,2]
[378572892,1754915268703,-205.6095023,0.00019164,2]
[378572893,1754915268726,-134.88979816,0.00019178,2]
[378572894,1754915272040,-489.26872829,0.00019178,2]
[378572895,1754915273468,1079.48873128,0.00018,2]
[378572896,1754915273491,10000.0,0.00018,2]
[378572897,1754915273512,10000.0,0.00018,2]
[378572898,1754915273534,10000.0,0.00018,2]
[378572899,1754915273557,10000.0,0.00018,2]
[378572900,1754915273580,4353.19458455,0.00018,2]
[378572901,1754915277677,4549.78130497,0.00018,2]
[378572902,1754915280097,-176.16745337,0.00019178,2]
[378572903,1754915284298,-313.49718089,0.00019164,2]
[378572904,1754915285812,-167.74362123,0.00019164,2]
[378572905,1754915293117,-21.45148008,0.00019164,2]
[378572906,1754915293139,-171.54446583,0.00019178,2]
[378572907,1754915295072,-167.8616455,0.00019178,2]
[378572908,1754915297207,-227.33216717,0.00019178,2]
[378572909,1754915298803,-254.0049634,0.00019178,2]
[378572910,1754915301014,-160.0,0.00019178,2]
[378572911,1754915301037,-241.81967888,0.00019178,2]
[378572913,1754915305188,-287.3297992,0.00019178,2]
[378572914,1754915307751,-167.64766389,0.00019178,2]
[378572915,1754915310990,-167.02182767,0.00019178,2]
[378572916,1754915313096,-264.24533842,0.00019178,2]
[378572917,1754915314588,-292.69115805,0.00019178,2]
[378572918,1754915316706,-271.67294127,0.00019178,2]
[378572919,1754915318095,1097.02411048,0.00017,2]
[378572920,1754915318117,10000.0,0.00017,2]
[378572921,1754915318139,10000.0,0.00017,2]
[378572922,1754915318160,10000.0,0.00017,2]
[378572923,1754915318182,5038.68827494,0.00017,2]
[378572924,1754915318610,-209.91437452,0.00019178,2]
[378572925,1754915320574,-166.24501413,0.00019178,2]
[378572926,1754915321009,4961.31172506,0.00018,2]
[378572927,1754915321032,10000.0,0.00018,2]
[378572928,1754915321053,10000.0,0.00018,2]
[378572929,1754915321074,10000.0,0.00018,2]
[378572930,1754915321095,10000.0,0.00018,2]
[378572931,1754915321116,10000.0,0.00018,2]
[378572932,1754915321136,10000.0,0.00018,2]
[378572933,1754915321156,1016.71732613,0.00018,2]
[378572934,1754915321214,8983.28267387,0.00018,2]
[378572935,1754915321235,10000.0,0.00018,2]
[378572936,1754915321257,4848.19768693,0.00018,2]
[378572937,1754915322624,-198.6212951,0.00019178,2]
[378572938,1754915322694,372.2757098,0.000149,2]
[378572939,1754915322912,1000.0,0.0001,2]
[378572940,1754915324732,-211.92183308,0.00019178,2]
[378572943,1754915327106,211.31874507,0.00016,2]
[378572944,1754915328058,-240.48863818,0.00019178,2]
[378572947,1754915329674,-270.61274479,0.00019178,2]
[378572950,1754915333536,-200.92269802,0.0001916,2]
[378572951,1754915335496,3568.2078582,0.0001905,2]
[378572952,1754915335520,1431.7921418,0.0001905,2]
[378572953,1754915336692,-251.28640038,0.0001916,2]
[378572954,1754915340027,-260.18038565,0.0001916,2]
[378572955,1754915342666,-172.80802818,0.00019159,2]
[378572956,1754915345699,-127.19197182,0.00019159,2]
[378572957,1754915345722,-51.1637441,0.0001916,2]
[378572958,1754915352301,5000.0,0.0001905,2]
[378572959,1754915358829,-166.59502041,0.0001916,2]
[378572960,1754915361372,-166.59502041,0.0001916,2]
[378572961,1754915367209,-166.59502043,0.0001916,2]
[378572962,1754915368632,-175.52180202,0.0001916,2]
[378572963,1754915370197,-278.35458977,0.0001916,2]
[378572964,1754915373355,-165.84804853,0.00019078,2]
[378572965,1754915374835,-95.78373188,0.00019078,2]
[378573194,1754915408331,-162.50916648,0.00019087,2]
[378573206,1754915421150,164.70161008,0.0001905,2]
[378573207,1754915427944,3403.50624812,0.00019,2]
[378573208,1754915427966,10000.0,0.00019,2]
[378573209,1754915427988,10000.0,0.00019,2]
[378573210,1754915428010,10000.0,0.00019,2]
[378573211,1754915428031,10000.0,0.00019,2]
[378573212,1754915428054,8150.49375188,0.00019,2]
[378573213,1754915430565,-205.49223638,0.00019059,2]
[378573214,1754915430588,-205.49223635,0.00019085,2]
[378573299,1754915432524,-205.49223635,0.00019111,2]
[378573301,1754915432533,-205.49223635,0.00019137,2]
[378573303,1754915432544,-34.0495268,0.00019159,2]
[378573305,1754915432556,-265.9504732,0.00019159,2]
[378573307,1754915432565,-300.0,0.00019159,2]
[378573309,1754915432574,-300.0,0.00019159,2]
[378573311,1754915432585,-300.0,0.00019159,2]
[378573313,1754915432595,-300.0,0.00019159,2]
[378573315,1754915432605,-1200.0,0.00019159,2]
[378573317,1754915432615,-9347.0495268,0.0001916,2]
[378573339,1754915434490,181.17280428,0.00018999,2]
[378573340,1754915434521,500.0,0.00018999,2]
[378573341,1754915434550,500.0,0.00018999,2]
[378573342,1754915434579,161.10308367,0.00018999,2]
[378573343,1754915434617,500.0,0.00018999,2]
[378573344,1754915434645,7.23036017,0.00018999,2]
[378573345,1754915434669,492.76963983,0.00018999,2]
[378573346,1754915434699,500.0,0.00018999,2]
[378573347,1754915434733,349.4863167,0.00018999,2]
[378573348,1754915434762,605.90444185,0.00018999,2]
[378573349,1754915434796,500.0,0.00018999,2]
[378573350,1754915434824,500.0,0.00018999,2]
[378573351,1754915434855,188.16354887,0.00018999,2]
[378573352,1754915434883,500.0,0.00018999,2]
[378573353,1754915434918,500.0,0.00018999,2]
[378573354,1754915434947,500.0,0.00018999,2]
[378573355,1754915434974,500.0,0.00018999,2]
[378573356,1754915435007,500.0,0.00018999,2]
[378573357,1754915435036,500.0,0.00018999,2]
[378573358,1754915435069,423.63684068,0.00018999,2]
[378573359,1754915435100,500.0,0.00018999,2]
[378573360,1754915435128,500.0,0.00018999,2]
[378573361,1754915435158,500.0,0.00018999,2]
[378573362,1754915435395,500.0,0.00018999,2]
[378573363,1754915435424,500.0,0.00018999,2]
[378573364,1754915435468,516.94817391,0.00018999,2]
[378573365,1754915435496,423.09103816,0.00018999,2]
[378573366,1754915435519,76.90896184,0.00018999,2]
[378573367,1754915435551,500.0,0.00018999,2]
[378573371,1754915435594,500.0,0.00018999,2]
[378573376,1754915435634,500.0,0.00018999,2]
[378573380,1754915435671,500.0,0.00018999,2]
[378573385,1754915435712,500.0,0.00018999,2]
[378573390,1754915435753,500.0,0.00018999,2]
[378573394,1754915435785,500.0,0.00018999,2]
[378573402,1754915437106,510.14203334,0.0001905,2]
[378573408,1754915437927,-491.81492417,0.0001916,2]
[378573409,1754915437937,-205.49223635,0.00019163,2]
[378573410,1754915437948,-80.53294925,0.00019178,2]
[378573411,1754915437957,-314.97604838,0.00019182,2]
[378573412,1754915437967,-154.33528994,0.000192,2]
[378573413,1754915437976,-154.33528993,0.000192,2]
[378573414,1754915437986,-154.33528993,0.000192,2]
[378573415,1754915437996,-2356.64771691,0.00019255,2]
[378573416,1754915438005,-261.63178041,0.00019255,2]
[378573417,1754915438015,-460.0,0.00019262,2]
[378573418,1754915438024,-175.39242547,0.00019262,2]
[378573419,1754915438033,-460.0,0.00019262,2]
[378573420,1754915438043,-460.0,0.00019262,2]
[378573421,1754915438052,-460.0,0.00019263,2]
[378573422,1754915438062,-460.0,0.00019263,2]
[378573423,1754915438072,-462.98363015,0.00019263,2]
[378573424,1754915438082,-473.75,0.00019263,2]
[378573425,1754915438094,-734.57,0.00019263,2]
[378573426,1754915438103,-2255.65,0.00019263,2]
[378573427,1754915438112,-6.44507754,0.00019263,2]
[378573428,1754915438123,-453.55492246,0.00019263,2]
[378573429,1754915438132,-460.0,0.00019263,2]
[378573430,1754915438141,-460.0,0.00019263,2]
[378573431,1754915438150,-460.0,0.00019263,2]
[378573432,1754915438159,-523.55365936,0.00019263,2]
[378573433,1754915438169,-460.0,0.00019263,2]
[378573434,1754915438178,-460.0,0.00019263,2]
[378573435,1754915438187,-460.0,0.00019263,2]
[378573436,1754915438196,-460.0,0.00019263,2]
[378573437,1754915438205,-833.49,0.00019263,2]
[378573438,1754915438214,-460.0,0.00019263,2]
[378573439,1754915438224,-460.0,0.00019263,2]
[378573440,1754915438233,-460.0,0.00019263,2]
[378573441,1754915438243,-460.0,0.00019263,2]
[378573442,1754915438253,-460.0,0.00019263,2]
[378573443,1754915438262,-460.0,0.00019263,2]
[378573444,1754915438271,-460.0,0.00019263,2]
[378573445,1754915438280,-381.70474068,0.00019263,2]
[378573446,1754915438296,-78.29525932,0.00019263,2]
[378573447,1754915438306,-460.0,0.00019263,2]
[378573448,1754915438315,-460.0,0.00019263,2]
[378573449,1754915438324,-460.0,0.00019263,2]
[378573450,1754915438333,-640.85,0.00019263,2]
[378573451,1754915438343,-460.0,0.00019263,2]
[378573452,1754915438352,-9455.85474068,0.00019264,2]
[378573453,1754915438363,-9700.36154642,0.00019264,2]
[378573454,1754915438374,-283.85756455,0.00019264,2]
[378573455,1754915438385,-528.0,0.00019264,2]
[378573456,1754915438396,-357.93594716,0.00019264,2]
[378573457,1754915438407,-844.5497084,0.00019264,2]
[378573458,1754915438418,-1548.45975793,0.00019264,2]
[378573459,1754915438429,-6233.65728076,0.00019264,2]
[378573460,1754915438438,-2356.64771687,0.00019283,2]
[378573461,1754915438448,-3781.06258638,0.00019299,5]
[378573462,1754915438458,-2356.64771687,0.0001931,2]
[378573463,1754915438468,-2183.31810187,0.00019333,2]
[378573464,1754915438477,-2356.64771687,0.00019338,2]
[378573465,1754915438486,-50000.0,0.00019338,2]
[378573466,1754915438496,-500.0,0.00019338,2]
[378573467,1754915438505,-1372.59,0.00019344,3]
[378573468,1754915438516,-1047.51,0.00019344,3]
[378573469,1754915438529,-523.75,0.00019344,3]
[378573470,1754915438543,-261.88,0.00019344,3]
[378573471,1754915438552,-785.65,0.00019344,3]
[378573472,1754915438561,-167.95,0.00019344,3]
[378573473,1754915438571,-503.88,0.00019344,3]
[378573474,1754915438580,-151.0,0.00019345,2]
[378573475,1754915438590,-151.0,0.00019345,2]
[378573476,1754915438600,-151.0,0.00019345,2]
[378573477,1754915438609,-250.0,0.00019345,2]
[378573478,1754915438618,-151.0,0.00019345,2]
[378573479,1754915438627,-152.94290677,0.00019345,2]
[378573480,1754915438636,-250.0,0.00019345,2]
[378573481,1754915438646,-151.0,0.00019345,2]
[378573482,1754915438656,-300.0,0.00019345,2]
[378573484,1754915438666,-151.0,0.00019345,2]
[378573485,1754915438675,-250.0,0.00019345,2]
[378573486,1754915438684,-151.0,0.00019345,2]
[378573487,1754915438694,-151.0,0.00019345,2]
[378573488,1754915438703,-300.0,0.00019345,2]
[378573489,1754915438713,-250.0,0.00019345,2]
[378573490,1754915438722,-151.0,0.00019345,2]
[378573491,1754915438731,-151.0,0.00019345,2]
[378573492,1754915438741,-300.0,0.00019345,2]
[378573493,1754915438753,-151.0,0.00019345,2]
[378573494,1754915438763,-250.0,0.00019345,2]
[378573495,1754915438772,-300.0,0.00019345,2]
[378573496,1754915438781,-151.0,0.00019345,2]
[378573497,1754915438790,-151.0,0.00019345,2]
[378573498,1754915438799,-250.0,0.00019345,2]
[378573499,1754915438808,-151.0,0.00019345,2]
[378573501,1754915438817,-151.0,0.00019345,2]
[378573502,1754915438827,-250.0,0.00019345,2]
[378573503,1754915438836,-300.0,0.00019345,2]
[378573504,1754915438845,-151.0,0.00019345,2]
[378573505,1754915438855,-151.0,0.00019345,2]
[378573506,1754915438865,-250.0,0.00019345,2]
[378573507,1754915438874,-300.0,0.00019345,2]
[378573508,1754915438883,-156.587,0.00019345,2]
[378573509,1754915438893,-151.0,0.00019345,2]
[378573510,1754915438903,-151.0,0.00019345,2]
[378573511,1754915438915,-300.0,0.00019345,2]
[378573512,1754915438924,-151.0,0.00019345,2]
[378573513,1754915438934,-151.0,0.00019345,2]
[378573514,1754915438943,-151.0,0.00019345,2]
[378573515,1754915438952,-300.0,0.00019345,2]
[378573516,1754915438963,-151.0,0.00019345,2]
[378573517,1754915438972,-151.0,0.00019345,2]
[378573518,1754915438982,-309.82478785,0.00019345,2]
[378573519,1754915438992,-151.0,0.00019345,2]
[378573520,1754915439002,-151.0,0.00019345,2]
[378573521,1754915439011,-151.0,0.00019345,2]
[378573522,1754915439021,-151.0,0.00019345,2]
[378573523,1754915439030,-250.0,0.00019345,2]
[378573524,1754915439039,-151.0,0.00019345,2]
[378573525,1754915439049,-151.0,0.00019345,2]
[378573526,1754915439058,-151.0,0.00019345,2]
[378573527,1754915439067,-250.0,0.00019345,2]
[378573528,1754915439076,-151.0,0.00019345,2]
[378573529,1754915439088,-151.0,0.00019345,2]
[378573530,1754915439100,-151.0,0.00019345,2]
[378573531,1754915439110,-250.0,0.00019345,2]
[378573532,1754915439119,-151.0,0.00019345,2]
[378573534,1754915439128,-151.0,0.00019345,2]